[Event "Open Nuevo Centro. Jornada 2"]
[Site "Chess.com"]
[Date "2020.06.26"]
[Round "7"]
[White "Valero Artagoitia, Sara"]
[Black "Rabbani Perez, Oumaima "]
[Result "0-1"]
[WhiteElo "494"]
[BlackElo "663"]
[TimeControl "180+2"]
[EndTime "11:49:39 PDT"]
[Termination "Victoria de OumaimaMaria por jaque mate"]

1. e4 {[%clk 0:03:01.9]} 1... e5 {[%clk 0:02:55.2]} 2. Nf3 {[%clk 0:03:00.9]}
2... Nf6 {[%clk 0:02:49.2]} 3. Bc4 {[%clk 0:02:56.3]} 3... Bc5 {[%clk
0:02:46.7]} 4. Nc3 {[%clk 0:02:53.4]} 4... Nc6 {[%clk 0:02:46]} 5. O-O {[%clk
0:02:52.1]} 5... O-O {[%clk 0:02:41.4]} 6. d3 {[%clk 0:02:51.9]} 6... d6 {[%clk
0:02:37.7]} 7. Bg5 {[%clk 0:02:42.7]} 7... Be6 {[%clk 0:02:28.8]} 8. h3 {[%clk
0:02:38.4]} 8... Nd5 {[%clk 0:02:22.8]} 9. Bxd5 {[%clk 0:02:32.4]} 9... Bxd5
{[%clk 0:02:14.3]} 10. Bxd8 {[%clk 0:02:30.5]} 10... Be6 {[%clk 0:02:10.7]} 11.
Bxc7 {[%clk 0:02:22]} 11... Bb6 {[%clk 0:01:42.6]} 12. Bxd6 {[%clk 0:02:11.2]}
12... Rad8 {[%clk 0:01:22.4]} 13. Bxf8 {[%clk 0:02:08.8]} 13... Rxf8 {[%clk
0:01:19.5]} 14. Ng5 {[%clk 0:02:06.8]} 14... Nd4 {[%clk 0:01:02.4]} 15. Qh5
{[%clk 0:02:03.1]} 15... Bf5 {[%clk 0:00:58.3]} 16. exf5 {[%clk 0:02:00.6]}
16... Rb8 {[%clk 0:00:55]} 17. Nd5 {[%clk 0:01:50.3]} 17... Nxc2 {[%clk
0:00:47.8]} 18. Rac1 {[%clk 0:01:45.7]} 18... Ne3 {[%clk 0:00:45.1]} 19. Rfe1
{[%clk 0:01:37.2]} 19... Nxd5 {[%clk 0:00:34.5]} 20. Rxe5 {[%clk 0:01:28.2]}
20... Nf4 {[%clk 0:00:27.6]} 21. Qh4 {[%clk 0:01:13.6]} 21... Nxd3 {[%clk
0:00:24.4]} 22. Rce1 {[%clk 0:00:42.1]} 22... Nxe1 {[%clk 0:00:22.5]} 23. Rxe1
{[%clk 0:00:40]} 23... Rc8 {[%clk 0:00:18.7]} 24. a3 {[%clk 0:00:37]} 24... f6
{[%clk 0:00:18.7]} 25. Ne6 {[%clk 0:00:33.6]} 25... Re8 {[%clk 0:00:09.7]} 26.
Nf4 {[%clk 0:00:21.2]} 26... Ba5 {[%clk 0:00:10.4]} 27. Ne6 {[%clk 0:00:19.2]}
27... Bxe1 {[%clk 0:00:08.2]} 28. Nc7 {[%clk 0:00:17.8]} 28... Re2 {[%clk
0:00:06.9]} 29. Nb5 {[%clk 0:00:14]} 29... Bxf2+ {[%clk 0:00:06.8]} 30. Kh2
{[%clk 0:00:11.6]} 30... Bxh4 {[%clk 0:00:07.1]} 31. Kg1 {[%clk 0:00:11.1]}
31... Bf2+ {[%clk 0:00:06.6]} 32. Kh2 {[%clk 0:00:11.7]} 32... Re3 {[%clk
0:00:06]} 33. Kh1 {[%clk 0:00:12.1]} 33... Bg3 {[%clk 0:00:04.4]} 34. Kg1 {[%clk
0:00:12.2]} 34... Re5 {[%clk 0:00:04.8]} 35. Kh1 {[%clk 0:00:12.5]} 35... Rxb5
{[%clk 0:00:05.1]} 36. Kg1 {[%clk 0:00:12.3]} 36... Rxb2 {[%clk 0:00:05.9]} 37.
Kf1 {[%clk 0:00:11.3]} 37... Bf2 {[%clk 0:00:04.6]} 38. g3 {[%clk 0:00:02.6]}
38... Bxg3 {[%clk 0:00:04.5]} 39. h4 {[%clk 0:00:03.5]} 39... Bxh4 {[%clk
0:00:05]} 40. Kg1 {[%clk 0:00:03.9]} 40... Rb3 {[%clk 0:00:04.5]} 41. Kh1 {[%clk
0:00:04.6]} 41... Rxa3 {[%clk 0:00:04.9]} 42. Kh2 {[%clk 0:00:05.5]} 42... Ra5
{[%clk 0:00:05.3]} 43. Kh3 {[%clk 0:00:06.3]} 43... Rxf5 {[%clk 0:00:05.9]} 44.
Kxh4 {[%clk 0:00:07]} 44... g5+ {[%clk 0:00:05.2]} 45. Kh3 {[%clk 0:00:07.8]}
45... g4+ {[%clk 0:00:04.4]} 46. Kxg4 {[%clk 0:00:07]} 46... Rc5 {[%clk
0:00:03.6]} 47. Kf4 {[%clk 0:00:07.1]} 47... Rc4+ {[%clk 0:00:04.1]} 48. Kf3
{[%clk 0:00:07.9]} 48... Rc3+ {[%clk 0:00:04.4]} 49. Kg4 {[%clk 0:00:08.4]}
49... Rc4+ {[%clk 0:00:04.3]} 50. Kf5 {[%clk 0:00:08.4]} 50... a5 {[%clk
0:00:04.7]} 51. Kxf6 {[%clk 0:00:09.1]} 51... a4 {[%clk 0:00:05.1]} 52. Ke6
{[%clk 0:00:09.8]} 52... a3 {[%clk 0:00:06.1]} 53. Kd6 {[%clk 0:00:10.3]} 53...
a2 {[%clk 0:00:06.4]} 54. Kd5 {[%clk 0:00:10.6]} 54... Rc2 {[%clk 0:00:06.7]}
55. Ke6 {[%clk 0:00:09.5]} 55... a1=Q {[%clk 0:00:07.4]} 56. Kd6 {[%clk
0:00:10.4]} 56... Re2 {[%clk 0:00:06.4]} 57. Kd5 {[%clk 0:00:10.7]} 57... Qd1+
{[%clk 0:00:07]} 58. Kc5 {[%clk 0:00:09.9]} 58... Rc2+ {[%clk 0:00:07.3]} 59.
Kb6 {[%clk 0:00:09.7]} 59... Qb1+ {[%clk 0:00:07.8]} 60. Ka7 {[%clk 0:00:09.6]}
60... Ra2+ {[%clk 0:00:08.6]} 61. Kb8 {[%clk 0:00:10.3]} 61... b5 {[%clk
0:00:08.4]} 62. Kb7 {[%clk 0:00:10]} 62... b4 {[%clk 0:00:08.4]} 63. Kc7 {[%clk
0:00:10.3]} 63... Qd1 {[%clk 0:00:07.6]} 64. Kb6 {[%clk 0:00:10.5]} 64... b3
{[%clk 0:00:07.5]} 65. Kb5 {[%clk 0:00:11]} 65... Qc1 {[%clk 0:00:07.5]} 66. Kb4
{[%clk 0:00:11]} 66... b2 {[%clk 0:00:08]} 67. Kb5 {[%clk 0:00:10.1]} 67...
b1=Q# {[%clk 0:00:08]} 0

[Event "Open Nuevo Centro. Jornada 2"]
[Site "Chess.com"]
[Date "2020.06.26"]
[Round "7"]
[White "Borissov, Julián"]
[Black "García Giménez, Santiago"]
[Result "1-0"]
[WhiteElo "1869"]
[BlackElo "1906"]
[TimeControl "180+2"]
[EndTime "11:50:10 PDT"]
[Termination "Victoria de julianborisov por abandono"]

1. e4 {[%clk 0:03:01.9]} 1... e5 {[%clk 0:03:00.3]} 2. Nf3 {[%clk 0:03:01.5]}
2... Nc6 {[%clk 0:03:01]} 3. Bb5 {[%clk 0:02:59.3]} 3... a6 {[%clk 0:03:02.2]}
4. Ba4 {[%clk 0:02:59.9]} 4... Nf6 {[%clk 0:03:02.2]} 5. O-O {[%clk 0:02:57.8]}
5... Be7 {[%clk 0:03:03.7]} 6. Re1 {[%clk 0:02:57.6]} 6... b5 {[%clk 0:03:04.2]}
7. Bb3 {[%clk 0:02:58]} 7... d6 {[%clk 0:03:05.7]} 8. c3 {[%clk 0:02:57.1]} 8...
O-O {[%clk 0:03:07.1]} 9. h3 {[%clk 0:02:57.8]} 9... Na5 {[%clk 0:03:07.9]} 10.
Bc2 {[%clk 0:02:58.2]} 10... c5 {[%clk 0:03:09.6]} 11. d3 {[%clk 0:02:55.6]}
11... Nc6 {[%clk 0:03:08.5]} 12. Nbd2 {[%clk 0:02:54.9]} 12... Re8 {[%clk
0:03:09]} 13. Nf1 {[%clk 0:02:54.1]} 13... Bf8 {[%clk 0:03:10.2]} 14. Ng3 {[%clk
0:02:49.6]} 14... g6 {[%clk 0:03:11.5]} 15. a4 {[%clk 0:02:45.1]} 15... b4
{[%clk 0:02:57.2]} 16. d4 {[%clk 0:02:45.3]} 16... Bg7 {[%clk 0:02:49.1]} 17.
dxc5 {[%clk 0:02:04.8]} 17... dxc5 {[%clk 0:02:51]} 18. Be3 {[%clk 0:02:01.6]}
18... Qe7 {[%clk 0:02:51.3]} 19. cxb4 {[%clk 0:01:39.3]} 19... cxb4 {[%clk
0:02:43.9]} 20. a5 {[%clk 0:01:31.5]} 20... Be6 {[%clk 0:02:36.4]} 21. Bb6
{[%clk 0:01:27.9]} 21... h6 {[%clk 0:02:25.4]} 22. Ba4 {[%clk 0:01:23.6]} 22...
Bd7 {[%clk 0:02:16.4]} 23. Rc1 {[%clk 0:01:22.6]} 23... Rac8 {[%clk 0:02:12.7]}
24. Qd3 {[%clk 0:01:18.9]} 24... Nb8 {[%clk 0:01:21.9]} 25. Bxd7 {[%clk
0:01:05.6]} 25... Nbxd7 {[%clk 0:01:21.7]} 26. Qxa6 {[%clk 0:01:02.4]} 26...
Nxb6 {[%clk 0:01:06]} 27. axb6 {[%clk 0:00:48]} 27... Ra8 {[%clk 0:00:56.5]} 28.
Qb5 {[%clk 0:00:40.3]} 28... Rab8 {[%clk 0:00:57.5]} 29. Rc7 {[%clk 0:00:31.2]}
29... Qxc7 {[%clk 0:00:38.1]} 30. Qxe8+ {[%clk 0:00:28.6]} 30... Nxe8 {[%clk
0:00:38.8]} 31. bxc7 {[%clk 0:00:27.5]} 31... Nxc7 {[%clk 0:00:40.3]} 32. Rc1
{[%clk 0:00:23.7]} 32... Ne6 {[%clk 0:00:40.8]} 33. Nf1 {[%clk 0:00:22.4]} 33...
b3 {[%clk 0:00:33.2]} 34. Ne3 {[%clk 0:00:22.8]} 34... Nd4 {[%clk 0:00:32.7]}
35. Kf1 {[%clk 0:00:21.7]} 35... Nxf3 {[%clk 0:00:21.3]} 36. gxf3 {[%clk
0:00:21.9]} 36... h5 {[%clk 0:00:20.7]} 37. Rc3 {[%clk 0:00:21.4]} 37... h4
{[%clk 0:00:21.1]} 38. Nd5 {[%clk 0:00:22]} 38... Bh6 {[%clk 0:00:21.4]} 39. Ke2
{[%clk 0:00:23]} 39... Kg7 {[%clk 0:00:21.6]} 40. Kd3 {[%clk 0:00:19.9]} 40...
f5 {[%clk 0:00:17.4]} 41. Kc4 {[%clk 0:00:20.3]} 41... Rc8+ {[%clk 0:00:17.3]}
42. Kxb3 {[%clk 0:00:21]} 42... Rb8+ {[%clk 0:00:18.8]} 43. Kc2 {[%clk
0:00:21.7]} 43... fxe4 {[%clk 0:00:19.8]} 44. fxe4 {[%clk 0:00:22.5]} 44... g5
{[%clk 0:00:20.9]} 45. f3 {[%clk 0:00:23]} 45... Kg6 {[%clk 0:00:21.3]} 46. Rc6+
{[%clk 0:00:24.2]} 46... Kg7 {[%clk 0:00:22.6]} 47. Ne7 {[%clk 0:00:25.3]} 47...
Kh7 {[%clk 0:00:19.1]} 48. Nf5 {[%clk 0:00:26.4]} 48... Bf8 {[%clk 0:00:19.9]}
49. b3 {[%clk 0:00:27]} 49... Bb4 {[%clk 0:00:19.6]} 50. Rc7+ {[%clk 0:00:28]}
50... Kg6 {[%clk 0:00:19.9]} 51. Kd3 {[%clk 0:00:28.4]} 51... Kf6 {[%clk
0:00:20.5]} 52. Kc4 {[%clk 0:00:29.4]} 52... Be1 {[%clk 0:00:20.4]} 53. Rc6+
{[%clk 0:00:30.8]} 53... Kf7 {[%clk 0:00:20.2]} 54. Rc7+ {[%clk 0:00:30.7]}
54... Kf6 {[%clk 0:00:21]} 55. Rc6+ {[%clk 0:00:20.5]} 55... Kf7 {[%clk
0:00:21.7]} 56. Rc5 {[%clk 0:00:21.7]} 56... Kf6 {[%clk 0:00:22.3]} 57. Rb5
{[%clk 0:00:21.2]} 57... Rc8+ {[%clk 0:00:22.9]} 58. Kd5 {[%clk 0:00:22.6]}
58... Rd8+ {[%clk 0:00:23.4]} 59. Nd6 {[%clk 0:00:23.6]} 59... Bc3 {[%clk
0:00:13.8]} 60. Rb6 {[%clk 0:00:24.5]} 60... Bd4 {[%clk 0:00:13.1]} 61. Rc6
{[%clk 0:00:23.8]} 61... Ke7 {[%clk 0:00:13.2]} 62. b4 {[%clk 0:00:23.8]} 62...
Bc3 {[%clk 0:00:11]} 63. b5 {[%clk 0:00:24.4]} 63... Bb4 {[%clk 0:00:12.4]} 64.
Rc7+ {[%clk 0:00:25.3]} 64... Kf6 {[%clk 0:00:13.2]} 65. Rc6 {[%clk 0:00:22.5]}
65... Ke7 {[%clk 0:00:14.3]} 66. Rc5 {[%clk 0:00:16.7]} 66... Bxc5 {[%clk
0:00:14.7]} 67. Kxc5 {[%clk 0:00:16.8]} 67... Rxd6 {[%clk 0:00:16.1]} 68. b6
{[%clk 0:00:17.3]} 68... Rd7 {[%clk 0:00:13]} 69. Kc6 {[%clk 0:00:16.9]} 69...
Rd8 {[%clk 0:00:14]} 70. b7 {[%clk 0:00:14.7]} 70... Ke6 {[%clk 0:00:13.6]} 71.
Kc7 {[%clk 0:00:15.5]} 71... Rg8 {[%clk 0:00:14]} 72. b8=Q {[%clk 0:00:15.6]}
72... Rxb8 {[%clk 0:00:14.3]} 73. Kxb8 {[%clk 0:00:16.5]} 73... Kd6 {[%clk
0:00:15.9]} 74. Kc8 {[%clk 0:00:17.4]} 74... Kc5 {[%clk 0:00:17.2]} 75. Kd7
{[%clk 0:00:18.4]} 75... Kd4 {[%clk 0:00:18.6]} 76. Ke6 {[%clk 0:00:19.3]} 76...
g4 {[%clk 0:00:19.2]} 77. fxg4 {[%clk 0:00:18.8]} 77... Kxe4 {[%clk 0:00:20.5]}
78. g5 {[%clk 0:00:19.9]} 78... Kf4 {[%clk 0:00:21.7]} 79. g6 {[%clk 0:00:21]}
79... e4 {[%clk 0:00:23]} 80. g7 {[%clk 0:00:22.3]} 80... e3 {[%clk 0:00:24.5]}
81. g8=Q {[%clk 0:00:23.2]} 81... e2 {[%clk 0:00:25.7]} 82. Qg1 {[%clk
0:00:24.4]} 82... Kf3 {[%clk 0:00:26.7]} 83. Qe1 {[%clk 0:00:25.7]} 83... Ke3
{[%clk 0:00:27.8]} 84. Ke5 {[%clk 0:00:26.5]} 84... Kf3 {[%clk 0:00:28.9]} 85.
Kd4 {[%clk 0:00:26.8]} 1

[Event "Open Nuevo Centro. Jornada 2"]
[Site "Chess.com"]
[Date "2020.06.26"]
[Round "7"]
[White "Pallardo Lozoya, Jose Vicente"]
[Black "Macias Pino, Diego"]
[Result "0-1"]
[WhiteElo "2212"]
[BlackElo "2239"]
[TimeControl "180+2"]
[EndTime "11:50:29 PDT"]
[Termination "Victoria de jesuimafe por tiempo"]

1. e4 {[%clk 0:03:01.9]} 1... c6 {[%clk 0:02:58.8]} 2. d4 {[%clk 0:02:46.9]}
2... d5 {[%clk 0:03:00.7]} 3. e5 {[%clk 0:02:48.2]} 3... c5 {[%clk 0:03:00.8]}
4. dxc5 {[%clk 0:02:47.1]} 4... e6 {[%clk 0:02:58.3]} 5. a3 {[%clk 0:02:42]}
5... Bxc5 {[%clk 0:02:58.3]} 6. b4 {[%clk 0:02:42.9]} 6... Bb6 {[%clk 0:02:59]}
7. Nf3 {[%clk 0:02:40.3]} 7... Ne7 {[%clk 0:02:59]} 8. Bd3 {[%clk 0:02:32.6]}
8... a5 {[%clk 0:02:59.8]} 9. Bb2 {[%clk 0:02:32.6]} 9... axb4 {[%clk
0:02:54.9]} 10. axb4 {[%clk 0:02:33.7]} 10... Rxa1 {[%clk 0:02:56.2]} 11. Bxa1
{[%clk 0:02:34.8]} 11... Ng6 {[%clk 0:02:58.1]} 12. Qd2 {[%clk 0:02:30.1]} 12...
Nc6 {[%clk 0:02:53.4]} 13. O-O {[%clk 0:02:24.8]} 13... Qe7 {[%clk 0:02:50.4]}
14. b5 {[%clk 0:02:21.1]} 14... Nb8 {[%clk 0:02:50.4]} 15. Bb2 {[%clk
0:02:11.9]} 15... Nd7 {[%clk 0:02:50.4]} 16. Re1 {[%clk 0:01:24.8]} 16... O-O
{[%clk 0:02:49.7]} 17. Nc3 {[%clk 0:01:17.9]} 17... Nc5 {[%clk 0:02:45.2]} 18.
Bf1 {[%clk 0:01:11.2]} 18... Rd8 {[%clk 0:02:42.9]} 19. Ba3 {[%clk 0:01:05.6]}
19... Qc7 {[%clk 0:02:36.9]} 20. Bxc5 {[%clk 0:00:54.1]} 20... Bxc5 {[%clk
0:02:32.3]} 21. Na4 {[%clk 0:00:54.6]} 21... Ba7 {[%clk 0:02:27.3]} 22. h4
{[%clk 0:00:45.4]} 22... Qe7 {[%clk 0:02:17.4]} 23. b6 {[%clk 0:00:32.7]} 23...
Bb8 {[%clk 0:02:16.3]} 24. Qd4 {[%clk 0:00:33.6]} 24... Bd7 {[%clk 0:02:13]} 25.
Nc5 {[%clk 0:00:34.4]} 25... Be8 {[%clk 0:01:59.3]} 26. h5 {[%clk 0:00:22.7]}
26... Nf8 {[%clk 0:02:00.1]} 27. h6 {[%clk 0:00:21.4]} 27... gxh6 {[%clk
0:01:59.3]} 28. Nd3 {[%clk 0:00:19.9]} 28... Ng6 {[%clk 0:01:58.6]} 29. Nf4
{[%clk 0:00:18.5]} 29... Nxf4 {[%clk 0:01:49.7]} 30. Qxf4 {[%clk 0:00:19.3]}
30... Qf8 {[%clk 0:01:51.1]} 31. Re3 {[%clk 0:00:18.2]} 31... f5 {[%clk
0:01:29.6]} 32. Nd4 {[%clk 0:00:17.1]} 32... Qe7 {[%clk 0:01:15.8]} 33. Rg3+
{[%clk 0:00:16.9]} 33... Bg6 {[%clk 0:01:17]} 34. Be2 {[%clk 0:00:14.4]} 34...
Rc8 {[%clk 0:00:40.1]} 35. Bh5 {[%clk 0:00:15.3]} 35... Kg7 {[%clk 0:00:38.3]}
36. c3 {[%clk 0:00:10.4]} 36... Rc5 {[%clk 0:00:23]} 37. Be2 {[%clk 0:00:11.3]}
37... Ra5 {[%clk 0:00:20.6]} 38. Rh3 {[%clk 0:00:12.3]} 38... Ra1+ {[%clk
0:00:18.6]} 39. Kh2 {[%clk 0:00:13.2]} 39... Kg8 {[%clk 0:00:19.9]} 40. Rxh6
{[%clk 0:00:12.8]} 40... Qf7 {[%clk 0:00:20.9]} 41. Rh3 {[%clk 0:00:11.9]} 41...
Ra6 {[%clk 0:00:22]} 42. Rg3 {[%clk 0:00:12.4]} 42... Rxb6 {[%clk 0:00:22.6]}
43. Bh5 {[%clk 0:00:13.2]} 43... Qg7 {[%clk 0:00:23.3]} 44. Nf3 {[%clk
0:00:12.4]} 44... Rc6 {[%clk 0:00:19.8]} 45. Qg5 {[%clk 0:00:13.7]} 45... Rc8
{[%clk 0:00:19.8]} 46. Bxg6 {[%clk 0:00:14.2]} 46... hxg6 {[%clk 0:00:21.7]} 47.
Qxg6 {[%clk 0:00:14]} 47... Qxg6 {[%clk 0:00:23.6]} 48. Rxg6+ {[%clk 0:00:15.3]}
48... Kf7 {[%clk 0:00:25.1]} 49. Rf6+ {[%clk 0:00:16.7]} 49... Ke7 {[%clk
0:00:24.8]} 50. Rh6 {[%clk 0:00:16.2]} 50... Rf8 {[%clk 0:00:22.4]} 51. Kg3
{[%clk 0:00:15.2]} 51... Rf7 {[%clk 0:00:22.6]} 52. Kf4 {[%clk 0:00:15.5]} 52...
Rg7 {[%clk 0:00:22.7]} 53. g3 {[%clk 0:00:16.2]} 53... Rg4+ {[%clk 0:00:21.8]}
54. Ke3 {[%clk 0:00:17.6]} 54... Rg7 {[%clk 0:00:21.5]} 55. Kd4 {[%clk
0:00:17.1]} 55... Ba7+ {[%clk 0:00:22]} 56. Kd3 {[%clk 0:00:17.9]} 56... Bxf2
{[%clk 0:00:23.1]} 57. Nd4 {[%clk 0:00:14.8]} 57... Rxg3+ {[%clk 0:00:21.6]} 58.
Ke2 {[%clk 0:00:13.6]} 58... Bxd4 {[%clk 0:00:22.5]} 59. cxd4 {[%clk 0:00:15.3]}
59... Rg7 {[%clk 0:00:22.8]} 60. Kf3 {[%clk 0:00:15.7]} 60... Kd7 {[%clk
0:00:24.1]} 61. Rf6 {[%clk 0:00:14.8]} 61... Re7 {[%clk 0:00:25]} 62. Ke3 {[%clk
0:00:15.2]} 62... Kc6 {[%clk 0:00:26.2]} 63. Kd3 {[%clk 0:00:16.6]} 63... Kb5
{[%clk 0:00:27.5]} 64. Kc3 {[%clk 0:00:18]} 64... Ka4 {[%clk 0:00:28.7]} 65. Rf8
{[%clk 0:00:18.8]} 65... Rc7+ {[%clk 0:00:29.3]} 66. Kd3 {[%clk 0:00:20.2]}
66... b5 {[%clk 0:00:28.9]} 67. Ra8+ {[%clk 0:00:21.2]} 67... Kb3 {[%clk
0:00:29.5]} 68. Ra6 {[%clk 0:00:22.7]} 68... Re7 {[%clk 0:00:29.6]} 69. Ra1
{[%clk 0:00:23.2]} 69... b4 {[%clk 0:00:30.2]} 70. Rb1+ {[%clk 0:00:24.5]} 70...
Ka4 {[%clk 0:00:31.5]} 71. Kc2 {[%clk 0:00:25.3]} 71... Rc7+ {[%clk 0:00:31.2]}
72. Kb2 {[%clk 0:00:26.7]} 72... Kb5 {[%clk 0:00:31.9]} 73. Rh1 {[%clk 0:00:26]}
73... Rg7 {[%clk 0:00:31.5]} 74. Rh6 {[%clk 0:00:25.6]} 74... Kc4 {[%clk
0:00:30.7]} 75. Rxe6 {[%clk 0:00:26.4]} 75... Rg2+ {[%clk 0:00:32]} 76. Kc1
{[%clk 0:00:27.5]} 76... Kxd4 {[%clk 0:00:33.3]} 77. Rb6 {[%clk 0:00:27.8]}
77... Kxe5 {[%clk 0:00:30.8]} 78. Rxb4 {[%clk 0:00:28.8]} 78... d4 {[%clk
0:00:32.4]} 79. Kd1 {[%clk 0:00:29.8]} 79... Ke4 {[%clk 0:00:33.4]} 80. Rb3
{[%clk 0:00:31.2]} 80... f4 {[%clk 0:00:34.2]} 81. Ke1 {[%clk 0:00:31]} 81... d3
{[%clk 0:00:35]} 82. Rb8 {[%clk 0:00:31.3]} 82... Re2+ {[%clk 0:00:34.5]} 83.
Kd1 {[%clk 0:00:32.4]} 83... Ra2 {[%clk 0:00:36.4]} 84. Re8+ {[%clk 0:00:33.2]}
84... Kf3 {[%clk 0:00:35.6]} 85. Ke1 {[%clk 0:00:33.5]} 85... Re2+ {[%clk
0:00:35]} 86. Kd1 {[%clk 0:00:32.8]} 86... Rxe8 {[%clk 0:00:35.4]} 0

[Event "Open Nuevo Centro. Jornada 2"]
[Site "Chess.com"]
[Date "2020.06.26"]
[Round "8"]
[White "Randazzo, Adrián"]
[Black "Campos Gambuti, Luis María"]
[Result "1/2-1/2"]
[WhiteElo "2471"]
[BlackElo "2418"]
[TimeControl "180+2"]
[EndTime "11:53:09 PDT"]
[Termination "Partida en tablas por mutuo acuerdo"]

1. e4 {[%clk 0:03:01.9]} 1... e5 {[%clk 0:02:49.4]} 2. Nf3 {[%clk 0:02:58.8]}
2... Nf6 {[%clk 0:02:51.3]} 3. Nxe5 {[%clk 0:02:52.2]} 3... d6 {[%clk
0:02:42.9]} 4. Nf3 {[%clk 0:02:51.9]} 4... Nxe4 {[%clk 0:02:44.3]} 5. Qe2 {[%clk
0:02:52.9]} 5... Qe7 {[%clk 0:02:44.5]} 6. d3 {[%clk 0:02:49.6]} 6... Nf6 {[%clk
0:02:45.6]} 7. Bg5 {[%clk 0:02:51.2]} 7... Nbd7 {[%clk 0:02:43.7]} 8. Nc3 {[%clk
0:02:49.8]} 8... h6 {[%clk 0:02:42.6]} 9. Bd2 {[%clk 0:02:42.2]} 9... a6 {[%clk
0:02:40.4]} 10. a4 {[%clk 0:02:36.6]} 10... g6 {[%clk 0:02:35.1]} 11. Qxe7+
{[%clk 0:02:24.6]} 11... Kxe7 {[%clk 0:02:31.5]} 12. d4 {[%clk 0:02:21.5]} 12...
Bg7 {[%clk 0:02:32.3]} 13. Bd3 {[%clk 0:02:19.6]} 13... Re8 {[%clk 0:02:33.5]}
14. O-O-O {[%clk 0:02:11.1]} 14... b6 {[%clk 0:02:33.5]} 1/2-1

[Event "Open Nuevo Centro. Jornada 2"]
[Site "Chess.com"]
[Date "2020.06.26"]
[Round "8"]
[White "Pardo Ruiz, Carlos"]
[Black "Birnoveanu, Petru"]
[Result "1-0"]
[WhiteElo "1863"]
[BlackElo "1684"]
[TimeControl "180+2"]
[EndTime "11:53:19 PDT"]
[Termination "Victoria de Carlitoscarlsen por jaque mate"]

1. e4 {[%clk 0:03:01.9]} 1... e6 {[%clk 0:02:59.9]} 2. d4 {[%clk 0:03:02.3]}
2... d5 {[%clk 0:03:00.3]} 3. exd5 {[%clk 0:03:04.2]} 3... exd5 {[%clk
0:03:00.4]} 4. Nf3 {[%clk 0:03:05.7]} 4... Bg4 {[%clk 0:03:00.7]} 5. h3 {[%clk
0:03:06.5]} 5... Qe7+ {[%clk 0:03:01.1]} 6. Be3 {[%clk 0:03:01.3]} 6... Qb4+
{[%clk 0:02:57.9]} 7. Nbd2 {[%clk 0:02:49.5]} 7... Bxf3 {[%clk 0:02:56.8]} 8.
Qxf3 {[%clk 0:02:40.9]} 8... Qxb2 {[%clk 0:02:57.2]} 9. Rb1 {[%clk 0:02:39.2]}
9... Qxa2 {[%clk 0:02:53.6]} 10. Rxb7 {[%clk 0:02:38.7]} 10... Bd6 {[%clk
0:02:52.8]} 11. Bb5+ {[%clk 0:02:32.1]} 11... c6 {[%clk 0:02:30.4]} 12. Qxf7+
{[%clk 0:02:30.2]} 12... Kd8 {[%clk 0:02:24.6]} 13. Bxc6 {[%clk 0:02:17.9]}
13... Nxc6 {[%clk 0:02:13.3]} 14. Qd7# {[%clk 0:02:17.1]} 1

[Event "Open Nuevo Centro. Jornada 2"]
[Site "Chess.com"]
[Date "2020.06.26"]
[Round "8"]
[White "Elenkov Olmo, Ivan"]
[Black "SIMARRO PEIRÓ, ANDRÉS"]
[Result "0-1"]
[WhiteElo "895"]
[BlackElo "1058"]
[TimeControl "180+2"]
[EndTime "11:54:15 PDT"]
[Termination "Victoria de AndresSP24 por abandono"]

1. e4 {[%clk 0:03:01.9]} 1... e5 {[%clk 0:02:57.1]} 2. Nf3 {[%clk 0:03:01.7]}
2... Nc6 {[%clk 0:02:55.5]} 3. Bc4 {[%clk 0:03:01]} 3... Bc5 {[%clk 0:02:51]} 4.
d3 {[%clk 0:02:48.3]} 4... Nf6 {[%clk 0:02:49.1]} 5. Ng5 {[%clk 0:02:48]} 5...
O-O {[%clk 0:02:48]} 6. O-O {[%clk 0:02:45.6]} 6... h6 {[%clk 0:02:45.4]} 7. Nf3
{[%clk 0:02:42.6]} 7... d5 {[%clk 0:02:41.7]} 8. exd5 {[%clk 0:02:41.8]} 8...
Nxd5 {[%clk 0:02:37.5]} 9. Bxd5 {[%clk 0:02:42]} 9... Qxd5 {[%clk 0:02:36.6]}
10. c4 {[%clk 0:02:41.2]} 10... Qd7 {[%clk 0:02:33.5]} 11. a3 {[%clk 0:02:33.4]}
11... Nd4 {[%clk 0:02:15.9]} 12. Nxe5 {[%clk 0:02:25.6]} 12... Qd6 {[%clk
0:02:09.3]} 13. Bf4 {[%clk 0:02:13.5]} 13... Qf6 {[%clk 0:02:06.2]} 14. Qc1
{[%clk 0:01:44.9]} 14... Ne2+ {[%clk 0:02:02.2]} 0

[Event "Open Nuevo Centro. Jornada 2"]
[Site "Chess.com"]
[Date "2020.06.26"]
[Round "8"]
[White "Zakharash, Georgii"]
[Black "Saiz Sapena, Veronica"]
[Result "0-1"]
[WhiteElo "1062"]
[BlackElo "1549"]
[TimeControl "180+2"]
[EndTime "11:54:59 PDT"]
[Termination "Victoria de Titina1 por jaque mate"]

1. c4 {[%clk 0:02:59.8]} 1... Nf6 {[%clk 0:02:57.9]} 2. Nc3 {[%clk 0:02:59.2]}
2... e6 {[%clk 0:02:58.8]} 3. Nf3 {[%clk 0:02:58.6]} 3... b6 {[%clk 0:02:59.1]}
4. g3 {[%clk 0:02:59.1]} 4... Bb7 {[%clk 0:03:00]} 5. Bg2 {[%clk 0:03:00]} 5...
Nc6 {[%clk 0:02:59.7]} 6. O-O {[%clk 0:02:59.5]} 6... d5 {[%clk 0:03:00]} 7. b3
{[%clk 0:02:57]} 7... d4 {[%clk 0:02:50.5]} 8. Nxd4 {[%clk 0:02:50.3]} 8... Qxd4
{[%clk 0:02:45.9]} 9. Nb5 {[%clk 0:02:36.2]} 9... Qd7 {[%clk 0:02:41.5]} 10. Bb2
{[%clk 0:02:30.5]} 10... a6 {[%clk 0:02:38.7]} 11. Nc3 {[%clk 0:02:27.7]} 11...
Be7 {[%clk 0:02:37.3]} 12. e3 {[%clk 0:02:26.2]} 12... O-O {[%clk 0:02:33.2]}
13. d4 {[%clk 0:02:22.9]} 13... Rab8 {[%clk 0:02:33.7]} 14. Qd2 {[%clk
0:02:21.3]} 14... Bb4 {[%clk 0:02:32.7]} 15. a3 {[%clk 0:02:19]} 15... Bxc3
{[%clk 0:02:32.9]} 16. Bxc3 {[%clk 0:02:17.6]} 16... Nd8 {[%clk 0:02:29.4]} 17.
Bxb7 {[%clk 0:02:09]} 17... Nxb7 {[%clk 0:02:27.2]} 18. e4 {[%clk 0:02:07.4]}
18... Nxe4 {[%clk 0:02:27.4]} 19. Qb2 {[%clk 0:02:01.8]} 19... Nxc3 {[%clk
0:02:27.6]} 20. Qxc3 {[%clk 0:02:03.7]} 20... c5 {[%clk 0:02:26.8]} 21. dxc5
{[%clk 0:02:02]} 21... Nxc5 {[%clk 0:02:26.3]} 22. Rfd1 {[%clk 0:02:03.9]} 22...
Qc6 {[%clk 0:02:24.2]} 23. Rd2 {[%clk 0:02:01.6]} 23... Rbc8 {[%clk 0:02:21.8]}
24. Rad1 {[%clk 0:02:00.4]} 24... Ne4 {[%clk 0:02:20.9]} 25. Qe5 {[%clk
0:01:48.5]} 25... Nxd2 {[%clk 0:02:20]} 26. Rxd2 {[%clk 0:01:47.6]} 26... Rcd8
{[%clk 0:02:19.9]} 27. Re2 {[%clk 0:01:46.5]} 27... Rd1+ {[%clk 0:02:18.9]} 28.
Re1 {[%clk 0:01:47.2]} 28... Rxe1+ {[%clk 0:02:17.7]} 29. Qxe1 {[%clk
0:01:49.1]} 29... Rd8 {[%clk 0:02:17.6]} 30. Qd1 {[%clk 0:01:46.4]} 30... Rxd1#
{[%clk 0:02:16.4]} 0